Cogmind - Beta 13 @@@ ROGUE MODE // 2024.03.06 @ 01:17:21 Player: rCartos Result: Destroyed by H-61 Shepherd with Heavy Assault Cannon Performance ------------- Evolutions (3) 1500 Regions Visited (6) 1200 Robots Destroyed (50) 250 Value Destroyed (1389) 1389 Prototype IDs (1) 20 Alien Tech Used (0) 0 Bonus (561) 561 TOTAL SCORE: 4920 Bonus ------- High Alert Combat Kills 61 Entered DSFs 500 Cogmind --------- Core Integrity 0/700 Matter 274/300 Energy 100/100 System Corruption 0% Temperature Cool (0) Movement Core (50) Location -7/DSF Parts ------- > --- POWER (2) -------- (None) > --- PROPULSION (4) --- (None) > --- UTILITY (4) ------ (None) > --- WEAPON (3) ------- (None) > --- INVENTORY (5) ---- Authchip [R/Combat] Peak State ------------ > --- POWER ------------ Light Nuclear Core > --- PROPULSION ------- Improved Carbon-fiber Leg Improved Carbon-fiber Leg > --- UTILITY ---------- Experimental Sensor Array Improved Targeting Computer Improved Weapon Shielding Hardlight Generator > --- WEAPON ----------- Heavy Assault Rifle Heavy Assault Rifle > --- INVENTORY -------- Weapon Shielding Rocket Launcher [Rating: 32] Favorites ----------- Power Ion Engine Engine Ion Engine Power Core Light Nuclear Core Propulsion Aluminum Leg Treads Light Treads Leg Aluminum Leg Wheel Wheel Hover Unit Improved Hover Unit Flight Unit Xenon Bombardment Thruster Utility Seismic Detector Device Seismic Detector Processor Improved Targeting Computer Protection Weapon Shielding Weapon Heavy Assault Rifle Energy Gun Particle Gun Ballistic Gun Heavy Assault Rifle Launcher Rocket Launcher Impact Weapon Hammer Slashing Weapon Scythe Special Melee Weapon Datajack Build | -11 -10 -10 -9 -8 -7 -7 ------- Run | Yrd Mat Min Mat Mat Fac DSF Slots Evolved 6 | . . . 2 2 2 . Power 1 | . . . 1 . . . Propulsion 2 | . . . . . 2 . Utility 2 | . . . 1 1 . . Weapon 1 | . . . . 1 . . Parts Attached 89 | 6 8 8 33 24 2 8 Power 14 | 1 . 1 5 5 . 2 Engine 12 | 1 . 1 4 4 . 2 Core 2 | . . . 1 1 . . Reactor . | . . . . . . . Propulsion 22 | 2 . 2 7 6 1 4 Treads 1 | . . . 1 . . . Leg 9 | . . 2 3 4 . . Wheel 2 | 2 . . . . . . Hover 1 | . . . . . 1 . Flight 9 | . . . 3 2 . 4 Utility 20 | 1 2 2 6 8 1 . Device 10 | 1 1 1 3 4 . . Storage . | . . . . . . . Processor 4 | . . . 2 1 1 . Hackware . | . . . . . . . Protection 6 | . 1 1 1 3 . . Artifact . | . . . . . . . Weapon 33 | 2 6 3 15 5 . 2 Energy Gun 6 | . . 2 4 . . . Energy Cannon . | . . . . . . . Ballistic Gun 13 | 2 3 . 5 2 . 1 Ballistic Cannon . | . . . . . . . Launcher 7 | . . . 4 2 . 1 Special Weapon . | . . . . . . . Impact Weapon 2 | . . 1 1 . . . Slashing Weapon 1 | . . . . 1 . . Piercing Weapon . | . . . . . . . Special Melee Weapon 4 | . 3 . 1 . . . Unidentified Prototypes . | . . . . . . . Parts Lost 31 | . 1 . 6 8 . 16 Power 9 | . . . 4 2 . 3 Propulsion 7 | . . . 1 . . 6 Utility 8 | . . . . 4 . 4 Weapon 7 | . 1 . 1 2 . 3 Highest Loss Streak 16 | . 1 . 3 3 . 16 To Critical Strikes . | . . . . . . . Average Slot Usage (%) 84 | . 95 99 86 77 58 20 Engine 13 | . 14 14 19 8 . 2 Core 1 | . . . . 4 7 1 Leg 14 | . . 26 11 17 . . Wheel 2 | . 28 1 . . . . Flight 1 | . . . 1 . 15 5 Device 16 | . 15 27 21 6 7 1 Processor 6 | . . . 7 14 20 4 Protection 3 | . 12 . 1 7 . . Energy Gun 5 | . . 18 3 . . . Ballistic Gun 10 | . 16 1 12 17 . 1 Impact Weapon 3 | . . 8 4 . . . Naked Turns 29 | . . . . . . 29 Heaviest Build 21 | 8 11 12 21 21 12 12 Greatest Support 36 | 20 20 20 20 36 12 24 Greatest Overweight (x) 6 | . . 3 6 5 . 3 Average Overweight (x) . | . . . . . . . Largest Inventory Capacity 5 | 5 5 5 5 5 5 5 Average Capacity 5 | 5 5 5 5 5 5 5 Most Carried 5 | 3 4 5 5 5 5 5 Average Carried 3 | . 2 4 4 2 4 1 Final Capacity 5 | 5 5 5 5 5 5 5 Final Carried 5 | 1 4 5 4 4 4 1 Class Distribution -------------------- 46% | Scavenger-Mutant 44% | Mutant 4% | Scavenger-Gunner 4% | Gunner Dominant Class ---------------- Mutant | -10/Materials Scavenger-Mutant | -10/Mines Scavenger-Mutant | -9/Materials Mutant | -8/Materials Mutant | -7/Factory Mutant | -7/DSF Resources | -11 -10 -10 -9 -8 -7 -7 ----------- Run | Yrd Mat Min Mat Mat Fac DSF Matter Collected 1646 | 278 30 100 423 611 172 32 Remotely 92 | . . . 92 . . . Salvage Created 1533 | 84 30 90 495 798 36 . Parts 111 | 3 2 8 47 47 4 . Haulers Intercepted . | . . . . . . . Recyclers Shooed 4 | 1 . . 3 . . . Parts Field Recycled . | . . . . . . . Retrieved Matter . | . . . . . . . Parts Self-Destructed . | . . . . . . . Prevented . | . . . . . . . Kills | -11 -10 -10 -9 -8 -7 -7 ------- Run | Yrd Mat Min Mat Mat Fac DSF Combat Hostiles Destroyed 44 | . 1 2 21 20 . . Melee 1 | . . . 1 . . . Guns 35 | . 1 2 15 17 . . AOE 8 | . . . 5 3 . . Classes Destroyed 7 | 2 1 . 3 1 . . Builder 1 | . . . . 1 . . Tunneler 1 | 1 . . . . . . Recycler 2 | 1 . . . 1 . . Watcher 2 | . . . 1 . 1 . Swarmer 19 | . . . 12 7 . . Grunt 17 | . 1 2 5 9 . . Sentry 8 | . . . 4 4 . . Best Kill Streak 7 | 1 1 2 7 6 1 . Combat Bots Only 7 | . 1 2 7 6 . . Max Kills in Single Turn 3 | 1 1 1 3 2 1 . Gunslinging 1 | . . . 1 . . . Exploded 3 | . . . 3 1 . . Melee 1 | . . . 1 . . . Uniques/NPCs Destroyed . | . . . . . . . Combat | -11 -10 -10 -9 -8 -7 -7 -------- Run | Yrd Mat Min Mat Mat Fac DSF Hostile Shots Fired 328 | . 5 17 125 112 . 69 Missed 98 | . . 2 44 29 . 23 Damage Taken 3623 | . 57 199 1041 1053 . 1273 Core 1155 | . 11 12 197 173 . 762 Absorbed by Shields 174 | . . . 66 108 . . Redirected to Shielding 156 | . . . 3 153 . . Regen/Repaired (Parts) 11 | . . . . 11 . . Core Remaining (%) 77 | 100 . 90 50 68 . . Volleys Fired 124 | 9 3 7 42 59 . 4 Largest 3 | 2 2 2 2 3 . 1 Hottest 105 | 40 40 40 105 66 . 33 Shots Fired 244 | 18 5 14 73 130 . 4 Gun 225 | 18 5 14 62 124 . 2 Cannon . | . . . . . . . Launcher 19 | . . . 11 6 . 2 Special . | . . . . . . . Kinetic 215 | 18 5 14 52 124 . 2 Thermal 10 | . . . 10 . . . Explosive 19 | . . . 11 6 . 2 Electromagnetic . | . . . . . . . Robot Hit Streak 28 | 3 2 5 15 28 . 2 Robot Miss Streak 4 | 4 2 2 3 4 . 1 Penetration Max . | . . . . . . . Secondary Targets 7 | . . . 3 4 . . Max Gunslinging Chain 1 | . . . 1 1 . . Shots Hit Robots 184 | 9 7 10 53 98 1 6 Core Hits 94 | 4 2 6 32 48 1 1 Critical Kills 2 | . . . 2 . . . Critical Parts Destroyed . | . . . . . . . Critical Strikes 2 | . . . 2 . . . Destroy 1 | . . . 1 . . . Smash 1 | . . . 1 . . . Melee Attacks 17 | . 4 . 6 . 2 5 Impact 5 | . . . 5 . . . Slashing 7 | . . . . . 2 5 Piercing . | . . . . . . . Sneak Attacks 3 | . 3 . . . . . Combat Hostiles . | . . . . . . . Follow-up Attacks . | . . . . . . . Damage Inflicted 3135 | 79 26 97 1032 1669 44 188 Guns 2208 | 79 26 91 677 1304 . 31 Cannons . | . . . . . . . Explosions 720 | . . . 272 352 . 96 Melee 182 | . . . 77 . 44 61 Ramming 25 | . . 6 6 13 . . Kinetic 2085 | 79 26 91 554 1304 . 31 Thermal 123 | . . . 123 . . . Explosive 720 | . . . 272 352 . 96 Electromagnetic . | . . . . . . . Impact 77 | . . . 77 . . . Slashing 105 | . . . . . 44 61 Piercing . | . . . . . . . Highest Corruption . | . . . . . . . Average Corruption . | . . . . . . . Corruption Purged . | . . . . . . . Corruption Blocked . | . . . . . . . Overload Shots . | . . . . . . . Overflow Damage 16 | . . . . 16 . . Projectiles . | . . . . . . . Explosions 16 | . . . . 16 . . Melee . | . . . . . . . Knockbacks . | . . . . . . . Impact . | . . . . . . . Kinetic . | . . . . . . . Secondary . | . . . . . . . Self-Inflicted Damage 127 | . . . 127 . . . Shots 4 | . . . 4 . . . Rammed . | . . . . . . . Targets Rammed 6 | . . 1 4 1 . . Kicked 6 | . . 1 4 1 . . Crushed . | . . . . . . . Highest Temperature 336 | . 12 81 336 140 . . Average Temperature 64 | . 7 46 103 48 . . Received Heat Transfer 830 | . 30 111 286 403 . . Siege Activations . | . . . . . . . Robots Corrupted . | . . . . . . . Combat Hostiles . | . . . . . . . Parts Fried . | . . . . . . . Impact Corruptions . | . . . . . . . Robots Melted . | . . . . . . . Combat Hostiles . | . . . . . . . Parts Melted 1 | . . . 1 . . . Heat Transferred 285 | . . . 285 . . . Parts Sabotaged . | . . . . . . . Parts Stolen . | . . . . . . . Parts Stripped . | . . . . . . . Power Chain Reactions . | . . . . . . . Alert | -11 -10 -10 -9 -8 -7 -7 ------- Run | Yrd Mat Min Mat Mat Fac DSF Peak Influence 633 | 10 76 79 496 633 309 216 Initial 287 | . 6 29 . 209 287 216 Average 197 | 4 33 49 281 329 304 114 Maximum Alert Level 2 | . . . 2 2 1 1 Low Security (%) 49 | 100 100 100 24 4 . 91 Level 1 38 | . . . 57 72 100 8 Level 2 11 | . . . 18 23 . . Level 3 . | . . . . . . . Level 4 . | . . . . . . . Level 5 . | . . . . . . . High Security . | . . . . . . . Max Security . | . . . . . . . Squads Dispatched 8 | . 2 . 1 4 . 1 Investigation . | . . . . . . . Extermination . | . . . . . . . Reinforcement 5 | . 2 . 1 1 . 1 Assault . | . . . . . . . Garrison 3 | . . . . 3 . . Intercept . | . . . . . . . Searches Triggered . | . . . . . . . Construction Impeded . | . . . . . . . Haulers Reinforced . | . . . . . . . Active Scanning Responses . | . . . . . . . Cargo Convoy Interrupts . | . . . . . . . Stealth | -11 -10 -10 -9 -8 -7 -7 --------- Run | Yrd Mat Min Mat Mat Fac DSF Distress Signals 7 | . . . 4 3 . . Communications Jammed . | . . . . . . . Distress Signals . | . . . . . . . Times Spotted 68 | . 5 2 30 28 1 2 Peak Tracking Total 7 | . 2 2 6 7 1 2 Tactical Retreats 3 | . 1 . 1 1 . . Traps | -11 -10 -10 -9 -8 -7 -7 ------- Run | Yrd Mat Min Mat Mat Fac DSF Traps Triggered 2 | . . . . 2 . . Indirectly . | . . . . . . . Trap Hack Attempts . | . . . . . . . Triggered . | . . . . . . . Disarmed . | . . . . . . . Reprogrammed . | . . . . . . . Reused . | . . . . . . . Traps Extracted . | . . . . . . . Installed . | . . . . . . . Triggered . | . . . . . . . Machines | -11 -10 -10 -9 -8 -7 -7 ---------- Run | Yrd Mat Min Mat Mat Fac DSF Machines Disabled 5 | . . . 2 3 . . Max in Single Turn 2 | . . . 1 2 . . Machines Repaired . | . . . . . . . Machines Dismantled . | . . . . . . . Machines Sabotaged . | . . . . . . . Overloaded Fab Kills . | . . . . . . . Hacking | -11 -10 -10 -9 -8 -7 -7 --------- Run | Yrd Mat Min Mat Mat Fac DSF Machines Accessed 10 | . 2 . 4 3 1 . Terminals 8 | . 2 . 3 2 1 . Fabricators . | . . . . . . . Repair Stations 1 | . . . . 1 . . Recycling Units . | . . . . . . . Scanalyzers 1 | . . . 1 . . . Garrison Access . | . . . . . . . Total Hacks 25 | . 7 . 8 9 1 . Successful 15 | . 3 . 4 7 1 . Failed 10 | . 4 . 4 2 . . Catastrophic 1 | . . . . 1 . . Database Lockouts . | . . . . . . . Manual . | . . . . . . . Terminals 21 | . 7 . 6 7 1 . Fabricators . | . . . . . . . Repair Stations 2 | . . . . 2 . . Recycling Units . | . . . . . . . Scanalyzers 2 | . . . 2 . . . Garrison Access . | . . . . . . . Terminal Hacks 12 | . 3 . 3 5 1 . Record 2 | . . . 2 . . . Open DSF 1 | . . . . . 1 . Alert Level 2 | . 1 . . 1 . . Locate Traps 1 | . 1 . . . . . Dispatch Records 1 | . . . 1 . . . Security Status 1 | . . . . 1 . . Investigation Status 1 | . . . . 1 . . Assault Status 1 | . . . . 1 . . Recall Investigation 1 | . . . . 1 . . Zone Layout 1 | . 1 . . . . . Fabricator Hacks . | . . . . . . . Repair Station Hacks 2 | . . . . 2 . . Scan Component 1 | . . . . 1 . . Repair 1 | . . . . 1 . . Recycling Unit Hacks . | . . . . . . . Scanalyzer 1 | . . . 1 . . . Insert Component 1 | . . . 1 . . . Garrison Access Hacks . | . . . . . . . Unauthorized Hacks . | . . . . . . . Terminals . | . . . . . . . Fabricators . | . . . . . . . Repair Stations . | . . . . . . . Recycling Units . | . . . . . . . Scanalyzers . | . . . . . . . Garrison Access . | . . . . . . . Data Cores Recovered . | . . . . . . . Used . | . . . . . . . Hacking Detections 7 | . 2 . 3 2 . . Full Trace Events . | . . . . . . . Feedback Events . | . . . . . . . Feedback Blocked . | . . . . . . . Robot Schematics Acquired . | . . . . . . . Robots Built . | . . . . . . . Authchips . | . . . . . . . Time . | . . . . . . . Total Robot Build Rating . | . . . . . . . Part Schematics Acquired . | . . . . . . . Parts Built . | . . . . . . . Authchips . | . . . . . . . Time . | . . . . . . . Total Part Build Rating . | . . . . . . . Parts Repaired 1 | . . . . 1 . . Time 136 | . . . . 136 . . Parts Recycled . | . . . . . . . Recycled Matter . | . . . . . . . Retrieved Matter . | . . . . . . . Retrieved Components . | . . . . . . . Parts Scanalyzed 1 | . . . 1 . . . Part Schematics Acquired . | . . . . . . . Parts Damaged 1 | . . . 1 . . . Bothacking | -11 -10 -10 -9 -8 -7 -7 ------------ Run | Yrd Mat Min Mat Mat Fac DSF Used RIF Installer . | . . . . . . . Robots Hacked 3 | . 2 . 1 . . . Non-combat 1 | . 1 . . . . . Combat 2 | . 1 . 1 . . . Robot Hacks Applied 4 | . 3 . 1 . . . parse_system 3 | . 2 . 1 . . . no_distress 1 | . 1 . . . . . Relay Couplers Released . | . . . . . . . Fabnet Peak Effective % . | . . . . . . . Robots Rewired . | . . . . . . . Allies Hacked . | . . . . . . . Hacks Repelled . | . . . . . . . Allies | -11 -10 -10 -9 -8 -7 -7 -------- Run | Yrd Mat Min Mat Mat Fac DSF Total Allies . | . . . . . . . Largest Group . | . . . . . . . Highest-Rated Group . | . . . . . . . Highest-Rated Ally . | . . . . . . . Total Orders . | . . . . . . . Ally Attacks . | . . . . . . . Total Damage . | . . . . . . . Kills . | . . . . . . . Allies Corrupted . | . . . . . . . Allies Melted . | . . . . . . . Intel | -11 -10 -10 -9 -8 -7 -7 ------- Run | Yrd Mat Min Mat Mat Fac DSF Robot Analysis Total . | . . . . . . . Derelict Logs Recovered 1 | . . 1 . . . . Drone Launches . | . . . . . . . Drone Recoveries . | . . . . . . . Exploration | -11 -10 -10 -9 -8 -7 -7 ------------- Run | Yrd Mat Min Mat Mat Fac DSF Turns Passed 2654 | 129 230 625 772 722 53 123 Spaces Moved 1663 | 119 219 488 371 298 118 50 Core 34 | 7 . 2 4 2 . 19 Treads 77 | . . . 77 . . . Legs 1032 | . . 477 278 277 . . Wheels 340 | 112 219 9 . . . . Hover . | . . . . . . . Flight 180 | . . . 12 19 118 31 Fastest Speed 31 | 50 80 80 117 37 37 31 Average Speed 111 | 78 80 119 151 116 37 91 Slowest Speed 360 | 80 80 200 360 300 37 200 Overloaded Moves . | . . . . . . . Propulsion Burnouts . | . . . . . . . Robots Hopped . | . . . . . . . Cave-ins Triggered . | . . . . . . . Exploration Rate (%) 35 | 6 40 74 42 32 3 52 Regions Visited 6 Branch Regions 1 Pre-discovered Areas . | . . . . . . . Known Exits Taken 2 | . . . 1 . 1 . Unknown Exits Taken 4 | 1 1 1 . 1 . . Scrap Searched 1 | . . 1 . . . . Spaces Dug 13 | . . . 13 . . . Terrain Destroyed 135 | . . . 101 22 . 12 Melee . | . . . . . . . Projectile . | . . . . . . . AOE 135 | . . . 101 22 . 12 Terrain Rammed . | . . . . . . . Walls Destroyed . | . . . . . . . Machines Disabled . | . . . . . . . Actions | -11 -10 -10 -9 -8 -7 -7 --------- Run | Yrd Mat Min Mat Mat Fac DSF Total 2227 | 140 266 518 495 568 124 116 Wait 225 | . 25 . 4 152 . 44 Move 1657 | 118 218 487 370 297 117 50 Hop . | . . . . . . . Pick Up 67 | 7 6 8 20 19 2 5 Fast Attach . | . . . . . . . Attach 56 | 6 4 2 17 17 2 8 Detach 8 | . 1 . 2 5 . . Swap 33 | . 4 6 16 7 . . Drop 34 | . 1 7 14 11 1 . Fire 124 | 9 3 7 42 59 . 4 Melee 17 | . 4 . 6 . 2 5 Ram . | . . . . . . . Kick 6 | . . 1 4 1 . . Crush . | . . . . . . . Escape Stasis . | . . . . . . . Rewire . | . . . . . . . Trap . | . . . . . . . Miscellaneous . | . . . . . . . Route ------- -11/Scrapyard -10/Materials -10/Mines -9/Materials (discovered 2 exits: *Mat x2) -8/Materials -7/Factory -7/DSF History --------- Turn | Location | Event 9 | -11/Scrapyard | Discovered new exit (range 16) 130 | -11/Scrapyard | Entered Materials 325 | -10/Materials | Discovered new exit (range 16) 327 | -10/Materials | Build established: Mutant 360 | -10/Materials | Entered Mines 418 | -10/Mines | Learned location of 1 exit from Materials 445 | -10/Mines | Discovered new exit (range 6) 674 | -10/Mines | Found a damaged Exp. Sensor Array with a note attached 676 | -10/Mines | Found Prototype Device 688 | -10/Mines | Build established: Scavenger-Mutant 753 | -10/Mines | Received a Rocket Launcher from a helpful Derelict 985 | -10/Mines | Entered Materials 985 | -9/Materials | Evolved 2 slots: Power x1, Utility x1 986 | -9/Materials | Identified exit to Materials 1204 | -9/Materials | Identified Exp. Sensor Array 1299 | -9/Materials | Lost 3 parts (1p1n1w) 1526 | -9/Materials | Destroyed 7 combat bots 1741 | -9/Materials | Discovered exit to Materials (range 10) 1757 | -9/Materials | Entered another Materials area 1757 | -8/Materials | Evolved 2 slots: Utility x1, Weapon x1 2034 | -8/Materials | Repaired Broken Exp. Sensor Array 2226 | -8/Materials | Lost 3 parts (1p2u) 2244 | -8/Materials | Garrison activated, responded to threat 2475 | -8/Materials | Discovered new exit (range 10) 2479 | -8/Materials | Entered Factory 2479 | -7/Factory | Evolved 2 slots: Propulsion x2 2532 | -7/Factory | Identified exit to DSF 2532 | -7/Factory | Entered DSF 2562 | -7/DSF | Additional patrols routed to DSF 2618 | -7/DSF | Core integrity fell below 50% 2639 | -7/DSF | Core integrity fell below 20% 2655 | -7/DSF | Destroyed by H-61 Shepherd with Heavy Assault Cannon Last Messages --------------- Nuclear Pulse Thruster destroyed. Imp. Ion Engine destroyed. Knocked back. Slug penetrates H-61 Shepherd. Acquired 16 matter. Slug penetrates Earth. Penetrated by Slug. Hvy. Assault Rifle destroyed. Knocked back. Penetrated by Slug. Acquired Authchip [R/Combat]. Penetrated by Slug. Slug penetrates Wall. Penetrated by Slug. Knocked back. Penetrated by Slug. Imp. Ion Engine destroyed. Slug penetrates Wall. Penetrated by Slug. Slug penetrates H-61 Shepherd. Map ----- +----------------------------------------------------+ | | | | | | | ??????????????????????????????????????????? | | ??????????????????????????????????????????? | | ??????????????????????????????????????????? | | ?????????###??????????????????????????????? | | ?????????""#??????????????????????????????? | | ?????????#"#??????????????????????????????? | | ??????####"##?????????????????????????????? | | ??????#"""""#?###??##?????????????????????? | | ??????#"""""##]]#[[[# [[[ #?????????????? | | ???#"##"" #?????????????? | | ???#""""" #?????????????? | | ???####"" ## # ### #???????????????? | | ??????### ##? #?? #???????#?????????????? | | ???????## ###?##?????????!!??????????????? | | ???????#] //#????????????!!??????????????? | | ???????#] //#??????????? !???????????????? | | ???????## ###??????????? ###?????????????? | | ???????# #?????????? !!#?????????????? | | ???????# #?##??????? !!#?????????????? | | ???????# ### #????? !!#?????????????? | | ??????### ####;;;###?# ^#???????????????? | | ??????# #;!!!;! !## ##???= #?????? | | ??????# ;;!!!;!@ %a a# === #?????? | | ??????# %% % ????? | | ??????# %% % Hh ^ ????? | | ?????#; % ^ ????? | | ?????#;!! ## ; == ; a##!! # #?????? | | ?????##!! ## # ;##a ##????#?????????? | | ??????################? #???????????????? | | ???????????????????????? !!??????????????? | | ???????????????????????? !!#?????????????? | | ????????????????????????? !!#?????????????? | | ??????????????????????????###?????????????? | | ??????????????????????????????????????????? | | ??????????????????????????????????????????? | | ??????????????????????????????????????????? | | ??????????????????????????????????????????? | | ??????????????????????????????????????????? | | ??????????????????????????????????????????? | | ??????????????????????????????????????????? | | ??????????????????????????????????????????? | | ??????????????????????????????????????????? | | ??????????????????????????????????????????? | | ??????????????????????????????????????????? | | ??????????????????????????????????????????? | | ??????????????????????????????????????????? | | ??????????????????????????????????????????? | +----------------------------------------------------+ Best States ------------- Heat Dissipation 34 Energy Generation 19 Energy Capacity 430 Matter Stores 300 Matter Capacity 300 Sight Range 18 Robot Scan Range 20 Terrain Scan Density 10 Armor Coverage 150 Weapon Shielding 66 Evasion (%) 63 Targeting Accuracy 12 Melee Accuracy 5 Recoil Reduction 1 Force Boost 20 Authchip Count 1 Item Schematics ----------------- None Robot Schematics ------------------ None Fabricated ------------ Nothing Alien Tech Used ----------------- None Achievements -------------- Crack Shot Made in Tau Ceti IV Safety First Troublemaker Challenges ------------ None Game ------ Seed HugeMobileRegenerator Manual? 0 Play Time 01:02:04 Cumulative 3.8 hours Start 2024.03.06 @ 00:15:02 End 2024.03.06 @ 01:17:21 Sessions 1 Manual Loads 0 Difficulty Rogue Special Mode None Game No. 5 Rogue 5 Adventurer 0 Explorer 0 Win Type - Total 0 Types 0/0/0/0/0/0/0/0/0 Lore% 1 Gallery% 6 Achievement% 6 Wizard Run 0 Options --------- Layout 1 ASCII 0 Keyboard 0 Movement Arrows Keybinds 0 Fullscreen 1 Font 16/Terminus Map View 25x20 Zoom Use 98% Tactical HUD 0 Map Filters NONE Filters NONE Steam 1 RUN: e8cb238a-0bcf-439f-bef7-7b875345e443